Cogmind - Beta 9.3 @@@ ROGUE MODE // 2019.12.21 @ 19:42:57 // Winter2019/RPGLIKE Player: Cassie Rose Result: Destroyed by S-10 Pest with Light Assault Rifle Performance ------------- Evolutions (0) 0 Regions Visited (1) 200 Robots Destroyed (12) 60 Value Destroyed (152) 152 Prototype IDs (0) 0 Alien Tech Used (0) 0 Bonus (0) 0 TOTAL SCORE: 412 Bonus ------- None Cogmind --------- Core Integrity 0/600 Matter 280/300 Energy 400/400 System Corruption 0% Temperature Cool (0) Movement Flying (37) Location -10/Materials Parts ------- > --- POWER (2) -------- Ion Engine Ion Engine > --- PROPULSION (2) --- Flight Unit Flight Unit > --- UTILITY (2) ------ Improved Terrain Scanner Seismic Analyzer > --- WEAPON (2) ------- Mining Claw Mining Claw > --- INVENTORY (0) ---- (None) Peak State ------------ > --- POWER ------------ Ion Engine Ion Engine > --- PROPULSION ------- Compact Wheel Compact Wheel > --- UTILITY ---------- Improved Terrain Scanner Seismic Analyzer > --- WEAPON ----------- EM Pulse Gun Light Assault Rifle > --- INVENTORY -------- (None) [Rating: 9] Favorites ----------- Power Ion Engine Engine Ion Engine Propulsion Flight Unit Wheel Compact Wheel Flight Unit Flight Unit Utility Seismic Analyzer Device Improved Terrain Scanner Processor Seismic Analyzer Weapon EM Pulse Gun Energy Gun EM Pulse Gun Ballistic Gun Light Assault Rifle Launcher Grenade Launcher Slashing Weapon Mining Claw Build | -11 -10 ------- Run | Scr Mat Slots Evolved 4 | 4 . Power 1 | 1 . Propulsion 1 | 1 . Utility 1 | 1 . Weapon 1 | 1 . Parts Attached 16 | 8 8 Power 2 | 2 . Engine 2 | 2 . Core . | . . Reactor . | . . Propulsion 7 | 2 5 Treads . | . . Leg . | . . Wheel 2 | 2 . Hover . | . . Flight 5 | . 5 Utility 2 | 2 . Device 1 | 1 . Storage . | . . Processor 1 | 1 . Hackware . | . . Protection . | . . Artifact . | . . Weapon 5 | 2 3 Energy Gun 1 | 1 . Energy Cannon . | . . Ballistic Gun 1 | 1 . Ballistic Cannon . | . . Launcher 1 | . 1 Special Weapon . | . . Impact Weapon . | . . Slashing Weapon 2 | . 2 Piercing Weapon . | . . Special Melee Weapon . | . . Unidentified Prototypes . | . . Parts Lost 1 | . 1 Power . | . . Propulsion 1 | . 1 Utility . | . . Weapon . | . . Highest Loss Streak 1 | . 1 Average Slot Usage (%) 98 | . 98 Engine 25 | . 25 Wheel 6 | . 6 Flight 18 | . 18 Device 12 | . 12 Processor 12 | . 12 Energy Gun 5 | . 5 Ballistic Gun 7 | . 7 Slashing Weapon 10 | . 10 Naked Turns . | . . Heaviest Build 16 | 14 16 Greatest Support 52 | 52 52 Greatest Overweight (x) . | . . Average Overweight (x) . | . . Largest Inventory Capacity . | . . Average Capacity . | . . Most Carried . | . . Average Carried . | . . Final Capacity . | . . Final Carried . | . . Class Distribution -------------------- 54% | Mutant 45% | Scavenger-Mutant Dominant Class ---------------- Scavenger-Mutant | -10/Materials Resources | -11 -10 ----------- Run | Scr Mat Matter Collected 369 | 287 82 Remotely . | . . Salvage Created 341 | 165 176 Parts 31 | 14 17 Haulers Intercepted . | . . Recyclers Shooed . | . . Parts Field Recycled . | . . Retrieved Matter . | . . Parts Self-Destructed . | . . Prevented . | . . Kills | -11 -10 ------- Run | Scr Mat Combat Hostiles Destroyed 7 | . 7 Melee 2 | . 2 Guns 5 | . 5 Classes Destroyed 4 | 2 2 Tunneler 4 | 4 . Recycler 1 | 1 . Swarmer 5 | . 5 Grunt 2 | . 2 Best Kill Streak 5 | 5 3 Combat Bots Only 3 | . 3 Max Kills in Single Turn 2 | 2 1 Gunslinging . | . . Exploded . | . . Melee 1 | . 1 Uniques/NPCs Destroyed . | . . Combat | -11 -10 -------- Run | Scr Mat Damage Taken 893 | . 893 Core 709 | . 709 Absorbed by Shields . | . . Redirected to Core 578 | . 578 Core Remaining (%) 100 | 100 . Volleys Fired 38 | 11 27 Largest 2 | 2 2 Hottest 60 | 60 60 Shots Fired 72 | 18 54 Gun 72 | 18 54 Cannon . | . . Launcher . | . . Special . | . . Kinetic 34 | 7 27 Thermal . | . . Explosive . | . . Electromagnetic 38 | 11 27 Robot Hit Streak 6 | 4 6 Robot Miss Streak 2 | 1 2 Penetration Max . | . . Secondary Targets 1 | . 1 Max Gunslinging Chain 1 | . 1 Shots Hit Robots 54 | 11 43 Core Hits 17 | 7 10 Critical Hits 2 | 1 1 Critical Kills 2 | 1 1 Critical Parts Destroyed . | . . Melee Attacks 19 | . 19 Impact . | . . Slashing 19 | . 19 Piercing . | . . Sneak Attacks . | . . Combat Hostiles . | . . Follow-up Attacks 1 | . 1 Damage Inflicted 753 | 200 553 Guns 479 | 124 355 Cannons . | . . Explosions 76 | 76 . Melee 198 | . 198 Ramming . | . . Kinetic 161 | 22 139 Thermal 76 | 76 . Explosive . | . . Electromagnetic 318 | 102 216 Impact . | . . Slashing 198 | . 198 Piercing . | . . Highest Corruption . | . . Average Corruption . | . . Corruption Purged . | . . Overload Shots . | . . Overflow Damage 36 | 20 16 Projectiles . | . . Explosions 20 | 20 . Melee 16 | . 16 Knockbacks . | . . Impact . | . . Kinetic . | . . Secondary . | . . Self-Inflicted Damage . | . . Shots . | . . Rammed . | . . Targets Rammed . | . . Kicked . | . . Crushed . | . . Highest Temperature 406 | 60 406 Average Temperature 120 | 24 143 Received Heat Transfer 90 | . 90 Effects 4 | . 4 Shutdowns 1 | . 1 Matter Decay 1 | . 1 Short Circuit 1 | . 1 Damage (minor) 1 | . 1 Siege Activations . | . . Robots Corrupted . | . . Combat Hostiles . | . . Parts Fried . | . . Impact Corruptions . | . . Robots Melted . | . . Combat Hostiles . | . . Parts Melted . | . . Heat Transferred 50 | 50 . Parts Sabotaged . | . . Parts Stolen . | . . Parts Stripped . | . . Power Chain Reactions 1 | 1 . Missiles Intercepted . | . . Alert | -11 -10 ------- Run | Scr Mat Peak Influence 206 | 25 206 Average Influence 84 | 7 120 Maximum Alert Level 1 | . 1 Low Security (%) 93 | 100 90 Level 1 6 | . 9 Level 2 . | . . Level 3 . | . . Level 4 . | . . Level 5 . | . . High Security . | . . Max Security . | . . Squads Dispatched 1 | . 1 Investigation . | . . Extermination . | . . Reinforcement 1 | . 1 Assault . | . . Garrison . | . . Intercept . | . . Construction Impeded . | . . Haulers Reinforced . | . . Stealth | -11 -10 --------- Run | Scr Mat Distress Signals . | . . Communications Jammed . | . . Distress Signals . | . . Times Spotted 14 | . 14 Peak Tracking Total 4 | . 4 Tactical Retreats 1 | . 1 Traps | -11 -10 ------- Run | Scr Mat Traps Triggered . | . . Indirectly . | . . Trap Hack Attempts . | . . Triggered . | . . Disarmed . | . . Reprogrammed . | . . Reused . | . . Traps Extracted . | . . Installed . | . . Triggered . | . . Machines | -11 -10 ---------- Run | Scr Mat Machines Disabled . | . . Max in Single Turn . | . . Machines Sabotaged . | . . Garrisons Compromised . | . . Overloaded Fab Kills . | . . Fab Network Shutdowns . | . . Hacking | -11 -10 --------- Run | Scr Mat Machines Accessed . | . . Terminals . | . . Fabricators . | . . Repair Stations . | . . Recycling Units . | . . Scanalyzers . | . . Garrison Access . | . . Total Hacks . | . . Successful . | . . Failed . | . . Catastrophic . | . . Database Lockouts . | . . Manual . | . . Terminals . | . . Fabricators . | . . Repair Stations . | . . Recycling Units . | . . Scanalyzers . | . . Garrison Access . | . . Terminal Hacks . | . . Fabricator Hacks . | . . Repair Station Hacks . | . . Recycling Unit Hacks . | . . Scanalyzer . | . . Garrison Access Hacks . | . . Unauthorized Hacks . | . . Terminals . | . . Fabricators . | . . Repair Stations . | . . Recycling Units . | . . Scanalyzers . | . . Garrison Access . | . . Data Cores Recovered . | . . Used . | . . Hacking Detections . | . . Full Trace Events . | . . Feedback Events . | . . Feedback Blocked . | . . Robot Schematics Acquired . | . . Robots Built . | . . Matter . | . . Time . | . . Total Robot Build Rating . | . . Part Schematics Acquired . | . . Parts Built . | . . Matter . | . . Time . | . . Total Part Build Rating . | . . Parts Repaired . | . . Time . | . . Parts Recycled . | . . Recycled Matter . | . . Retrieved Matter . | . . Retrieved Components . | . . Parts Scanalyzed . | . . Part Schematics Acquired . | . . Parts Damaged . | . . Bothacking | -11 -10 ------------ Run | Scr Mat Used RIF Installer . | . . Robots Hacked . | . . Non-combat . | . . Combat . | . . Robot Hacks Applied . | . . Relay Couplers Released . | . . Robots Rewired . | . . Allies Hacked . | . . Hacks Repelled . | . . Allies | -11 -10 -------- Run | Scr Mat Total Allies . | . . Largest Group . | . . Highest-Rated Group . | . . Highest-Rated Ally . | . . Total Orders . | . . Ally Attacks . | . . Total Damage . | . . Kills . | . . Allies Corrupted . | . . Allies Melted . | . . Intel | -11 -10 ------- Run | Scr Mat Robot Analysis Total . | . . Derelict Logs Recovered . | . . Drone Launches . | . . Drone Recoveries . | . . Exploration | -11 -10 ------------- Run | Scr Mat Turns Passed 377 | 120 257 Spaces Moved 288 | 76 212 Core 2 | 2 . Treads . | . . Legs . | . . Wheels 99 | 74 25 Hover . | . . Flight 187 | . 187 Fastest Speed 37 | 50 37 Average Speed 58 | 98 44 Slowest Speed 100 | 100 100 Overloaded Moves . | . . Propulsion Burnouts . | . . Robots Hopped . | . . Cave-ins Triggered . | . . Exploration Rate (%) 19 | 5 34 Regions Visited 1 Branch Regions . Pre-discovered Areas . | . . Known Exits Taken . | . . Unknown Exits Taken 1 | 1 . Scrap Searched . | . . Spaces Dug . | . . Terrain Destroyed . | . . Melee . | . . Projectile . | . . AOE . | . . Actions | -11 -10 --------- Run | Scr Mat Total 392 | 100 292 Wait 21 | 6 15 Move 287 | 75 212 Hop . | . . Pick Up . | . . Fast Attach 14 | 8 6 Attach . | . . Detach . | . . Swap 2 | . 2 Drop 7 | . 7 Fire 38 | 11 27 Melee 18 | . 18 Ram . | . . Kick . | . . Crush . | . . Escape Stasis . | . . Rewire . | . . Trap . | . . Miscellaneous 5 | . 5 Route ------- -11/Scrapyard -10/Materials (discovered 1 exit: [*Min]) History --------- Turn | Location | Event 1 | -11/Scrapyard | Upgraded with Power slot (x1) 1 | -11/Scrapyard | Upgraded with Propulsion slot (x1) 1 | -11/Scrapyard | Upgraded with Utility slot (x1) 1 | -11/Scrapyard | Upgraded with Weapon slot (x1) 16 | -11/Scrapyard | Discovered new exit (range 16) 121 | -11/Scrapyard | Entered Materials 210 | -10/Materials | Core integrity fell below 50% 225 | -10/Materials | Core integrity fell below 20% 272 | -10/Materials | Discovered new exit (range 8) 378 | -10/Materials | Destroyed by S-10 Pest with Light Assault Rifle Last Messages --------------- 00279_ Acquired Mining Claw. 00295_ U-05 Engineer lays Concrete. 00297_ R-06 Scavenger collects Broken EM Pulse Gun. 00297_ K-01 Serf collects debris. 00297_ U-05 Engineer lays Concrete. 00300_ K-01 Serf collects debris. 00301_ U-05 Engineer lays Concrete. 00322_ Mining Claw follow-up attack on S-10 Pest. 00330_ Destroyed Lgt. Ion Engine. 00337_ Flight Unit destroyed. 00339_ S-10 Pest destroyed. 00342_ Acquired 25 matter. 00343_ Acquired Flight Unit. 00345_ Dropped Flight Unit. 00353_ K-01 Serf collects debris. 00354_ S-10 Pest suffers critical hit. 00354_ S-10 Pest destroyed. 00356_ K-01 Serf collects debris. 00357_ Destroyed Flight Unit. 00358_ K-01 Serf collects debris. Map ----- +----------------------------------------------------+ | # # #######+## ##" | | # # | | # + | | #! # | | # ######+####### | | #= ##?# T ## | | # #??# ## | | # ##?# """ ## | | # []/ #??# """ ## | | # #?## """ ## | | # #?## ## | | # #?## """ ## | | ########?# """ ## !=* | | ???#??#??# """ ## *%[ | | ???#?#?### ## =[ | | #??###?#?#! ## | | ???##?#??# ## | | ##?##????######## #######+### | | ?#?###????##?##?## ## ?? ? #?? | | ????##??########## #??"?"???#?? | | ??##????## # ##?"?"? ??? | | #?????#### + ## ??"?????? | | ?######### "Y" # #? ? ? ???? | | # T # """ # ## ?? ?????? | | # """ #+####### ## ????????? | | # """@# ###### #?#???????? | | # """s#[ ?????? | | # """[/ ^ ?????? | | # k """%# ????? | | # =## ##### #####?????? | | # ## ###??######??#?#????? | | # ## ##???###??##????????? | | ########+## #??# ??????????????? | | ????? ?# #???? ? ????????????? | | ?##???## #?#??"??????????????? | | ?#????## ###??"?"??"?????????? | | ?#???#?# #????"??????????????? | | ? ?????? #??#?""?????????????? | | #???? ?# ##?? ?"?????????????? | | ? ? ? ? ?????? ?????????????? | | ???????? ?#?#????????????????? | | ?????? # ????????????????????? | | ????? ?? ??????????????????????? | | ????????????????????????????????? | | ????????????????????????????????? | | ????????????????????????????????? | | ????????????????????????????????? | | ????????????????????????????????? | | ????????????????????????????????? | | ????????????????????????????????? | +----------------------------------------------------+ Best States ------------- Heat Dissipation 25 Energy Generation 15 Energy Capacity 400 Matter Stores 300 Matter Capacity 300 Sight Range 16 Terrain Scan Range 16 Terrain Scan Density 60 Evasion (%) 62 Item Schematics ----------------- None Robot Schematics ------------------ None Fabricated ------------ Nothing Alien Tech Used ----------------- None Achievements -------------- None Challenges ------------ None RPGLIKE | -11 -10 --------- Run | Scr Mat Levels Raised . | . . XP Earned 3850 | 3000 850 XP Spent 3000 | 3000 . Upgrades 8 | 8 . Power Slot 1 | 1 . Propulsion Slot 1 | 1 . Utility Slot 1 | 1 . Weapon Slot 1 | 1 . Mass Support 4 | 4 . Protomatter Created 50 | . 50 Integrity Restored 108 | . 108 Core 108 | . 108 Protomatter Decayed 14 | . 14 Game ------ Seed BackupHellfireCarapace Manual? 0 Play Time 00:08:44 Cumulative 77.8 hours Start 2019.12.21 @ 19:37:35 End 2019.12.21 @ 19:42:57 Sessions 1 Manual Loads 0 Difficulty Rogue Special Mode Winter2019/RPGLIKE Game No. 131 Rogue 131 Adventurer 0 Explorer 0 Win Type - Total 0 Types 0/0/0/0/0/0/0 Lore% 22 Gallery% 28 Achievement% 27 Wizard Run 0 Options --------- ASCII 0 Keyboard 0 Movement Mouse Keybinds 0 Fullscreen 2 Font 18/SmallcapsGlow Map View 76x50 Tactical HUD 1 Map Filters NONE Filters LOW_CONTRAST(13,24,33)|BRIGHTNESS(120)|SATURATION(80) Steam 1 RUN: 28589042-ade9-4487-8c90-e00f8f0c8ff2